bitfinex/quotes_ETHUSD_20250802
["timestamp","ask_amount","ask_price","bid_price","bid_amount"]
[1754114735910,38.46634035,3509.8,3509.7,0.05274505]
[1754114736068,3.21034035,3509.8,3509.7,0.05274505]
[1754114736270,4.91734035,3509.8,3509.7,0.05274505]
[1754114736610,4.707,3509.8,3509.7,0.05274505]
[1754114736811,6.844,3510.0,3509.7,0.71514505]
[1754114736966,6.844,3510.0,3509.7,0.05274505]
[1754114737172,4.707,3509.9,3509.7,0.05274505]
[1754114737577,30.95177072,3509.8,3509.7,0.05274505]
[1754114737793,31.4733,3509.8,3509.7,0.05274505]
[1754114738179,35.7325,3509.8,3509.7,0.05274505]
[1754114738381,30.0,3509.8,3509.7,0.05274505]
[1754114738567,4.711,3509.8,3509.7,0.05274505]
[1754114738769,3.0,3509.9,3509.7,0.05274505]
[1754114738985,6.844,3510.0,3509.7,0.71514505]
[1754114739202,4.713,3509.9,3509.8,0.6624]
[1754114739441,4.713,3509.9,3509.7,0.05274505]
[1754114739901,4.713,3509.9,3509.8,0.459]
[1754114740278,4.713,3509.9,3509.7,0.05274505]
[1754114740612,0.9233,3509.8,3509.7,0.05274505]
[1754114741802,0.4705,3509.8,3509.7,0.05274505]
[1754114742309,0.49897072,3509.8,3509.7,0.05274505]
[1754114742813,4.04897072,3509.8,3509.7,0.05274505]
[1754114743002,34.50177072,3509.8,3509.7,0.05274505]
[1754114743202,34.4733,3509.8,3509.7,0.05274505]
[1754114743610,0.55,3509.5,3509.0,0.02327]
[1754114743926,33.1424,3509.1,3509.0,0.02327]
[1754114744135,38.4124,3509.1,3509.0,0.02327]
[1754114744286,38.3329,3509.1,3509.0,0.02327]
[1754114744591,38.8829,3509.1,3509.0,0.02327]
[1754114745021,34.6157,3509.1,3509.0,0.02327]
[1754114745191,39.3367,3509.1,3509.0,0.02327]
[1754114745724,39.3367,3509.1,3507.7,0.13969182]
[1754114745725,41.0407,3509.1,3507.7,0.13969182]
[1754114745897,0.55,3507.6,3505.1,0.459]
[1754114746086,2.85168026,3506.8,3505.1,1.459]
[1754114746294,30.0,3506.6,3505.2,0.2034]
[1754114746487,11.613,3506.5,3505.3,0.459]
[1754114746719,30.0,3506.4,3505.4,0.16624]
[1754114747059,11.613,3506.5,3505.4,0.16624]
[1754114747060,30.0,3506.2,3505.4,0.16624]
[1754114747283,4.765,3506.3,3505.1,1.0]
[1754114747284,30.0,3506.0,3505.1,1.0]
[1754114747426,30.0,3505.8,3505.0,10.0]
[1754114747628,30.0,3505.6,3505.0,10.0]
[1754114747922,5.2705,3505.7,3505.0,10.0]
[1754114747923,30.0,3505.4,3505.0,10.0]
[1754114748125,30.0,3505.2,3505.0,10.0]
[1754114748349,4.801,3505.1,3505.0,11.0]
[1754114748524,0.55,3505.8,3505.0,11.0]
[1754114748727,4.802,3505.7,3505.0,11.459]
[1754114749069,30.0,3506.2,3505.1,17.06356687]
[1754114749271,4.802,3506.1,3505.2,0.6624]
[1754114749441,4.801,3506.0,3505.2,3.00975669]
[1754114749625,30.0,3506.4,3505.3,0.6624]
[1754114749830,0.6077604,3509.1,3505.7,16.40116687]
[1754114749831,30.0,3507.1,3505.7,16.40116687]
[1754114750161,2.85022496,3508.5,3505.2,2.80635669]
[1754114750162,6.852,3507.4,3506.2,16.40116687]
[1754114750377,1.62852715,3507.9,3506.3,0.6624]
[1754114750378,1.17572715,3507.9,3506.3,0.6624]
[1754114750523,4.802,3507.8,3506.4,1.70635669]
[1754114750725,0.55,3507.5,3505.2,0.459]
[1754114751041,3.0,3506.9,3505.3,1.16624]
[1754114751377,0.55,3506.4,3505.3,1.16624]
[1754114751679,5.3006,3506.3,3505.3,1.16624]
[1754114751967,5.3006,3506.3,3505.4,0.164064]
[1754114752139,30.0,3506.2,3505.4,0.164064]
[1754114752341,4.808,3506.1,3505.4,16.56523087]
[1754114752531,4.808,3506.0,3505.5,0.6778]
[1754114752724,4.805,3506.0,3505.8,12.24913231]
[1754114752955,4.805,3506.1,3505.9,0.6778]
[1754114753159,0.4906,3507.6,3506.0,0.6778]
[1754114753325,30.0,3507.4,3506.1,0.6778]
[1754114753829,30.0,3507.4,3506.2,0.4744]
[1754114754176,4.805,3507.5,3506.4,12.24913231]
[1754114754383,4.805,3507.5,3506.5,1.97049323]
[1754114754854,30.0,3507.6,3506.5,1.97049323]
[1754114755042,4.801,3507.4,3506.5,1.97049323]
[1754114755865,0.1424,3507.1,3506.6,0.1424]
[1754114756070,0.4906,3507.7,3506.7,0.4744]
[1754114756365,0.1424,3507.1,3506.8,0.21128932]
[1754114756659,0.1424,3507.1,3506.8,0.68568932]
[1754114757238,7.0,3507.0,3506.8,0.68568932]
[1754114757439,7.0,3507.0,3506.8,0.21128932]
[1754114757637,7.0,3507.0,3506.9,0.6778]
[1754114758282,7.0,3507.0,3506.9,2.00586216]
[1754114759162,0.001,3507.7,3506.9,2.00586216]
[1754114759330,0.001,3507.7,3507.3,12.24913231]
[1754114759532,0.001,3507.7,3507.6,0.1424]
[1754114759951,7.001,3507.7,3507.6,0.8202]
[1754114760167,0.001,3507.7,3507.6,2.12713323]
[1754114761369,0.001,3507.7,3507.6,1.92373323]
[1754114761564,0.001,3507.7,3507.6,2.12713323]
[1754114761973,0.001,3507.7,3507.6,2.15564275]
[1754114762375,0.001,3507.7,3507.6,2.12713323]
[1754114762575,0.001,3508.1,3507.6,2.15564275]
[1754114762906,0.001,3508.1,3508.0,12.39153231]
[1754114763386,0.001,3508.1,3508.0,17.85533231]
[1754114764267,4.789,3509.1,3508.1,3.0]
[1754114764464,0.4906,3509.4,3508.1,3.0]
[1754114764465,0.633,3509.4,3508.2,0.6778]
[1754114764665,0.4906,3509.3,3508.3,2.08553323]
[1754114764901,0.9228,3509.3,3508.3,6.87053323]
[1754114765282,0.9228,3509.3,3508.3,6.86953323]
[1754114765489,0.9228,3509.3,3508.4,0.98695332]
[1754114765880,5.2766,3509.6,3508.4,1.46135332]
[1754114766477,0.4906,3509.6,3508.4,1.46135332]
[1754114766709,0.4906,3509.6,3508.5,4.78]
[1754114766915,0.4906,3509.6,3508.5,4.778]
[1754114767242,0.4906,3509.6,3508.6,0.85282865]
[1754114767516,0.4906,3509.6,3508.7,0.4744]
[1754114768882,0.4906,3509.6,3508.6,5.62382865]
[1754114769216,0.4906,3509.6,3508.6,4.771]
[1754114770282,0.4322,3509.5,3508.5,4.769]
[1754114770482,0.4906,3509.4,3508.5,4.769]
[1754114771188,0.4906,3509.4,3508.4,1.46135332]
[1754114771514,0.4906,3509.4,3508.5,4.763]
[1754114772026,4.769,3509.8,3508.5,4.761]
[1754114772200,4.769,3509.8,3508.6,0.6778]
[1754114772400,0.4906,3509.7,3508.6,0.6778]
[1754114774724,0.633,3509.7,3509.2,0.1424]
[1754114774889,0.1424,3509.7,3509.2,0.1424]
[1754114775096,0.4906,3509.6,3509.2,0.1424]
[1754114775291,0.4906,3509.5,3508.7,4.747]
[1754114775497,0.4906,3509.5,3509.1,0.1424]
[1754114775729,0.4906,3509.4,3509.1,0.1424]
[1754114776930,0.4906,3509.3,3509.1,0.1424]
[1754114777553,0.1424,3509.7,3509.1,0.1424]
[1754114777918,0.4906,3509.6,3509.1,0.1424]
[1754114778113,0.1424,3509.7,3509.1,0.1424]
[1754114778348,0.4906,3509.5,3509.1,0.1424]
[1754114778552,0.4906,3509.4,3509.1,0.1424]
[1754114779048,0.4906,3509.3,3509.1,0.1424]
[1754114779255,0.4906,3509.2,3509.1,0.1424]
[1754114779560,0.4906,3509.5,3509.1,0.1424]
[1754114780356,0.4906,3509.4,3509.1,0.1424]
[1754114780550,0.4906,3509.3,3509.1,0.1424]
[1754114781343,0.4906,3509.6,3509.2,0.1424]
[1754114781852,0.4854,3509.5,3509.2,0.1424]
[1754114782026,0.9439,3509.5,3509.2,0.1424]
[1754114782240,0.001,3509.3,3509.2,0.1424]
[1754114782443,0.4864,3509.3,3509.2,0.1424]
[1754114783162,0.001,3509.3,3509.2,0.1424]
[1754114783361,0.001,3509.3,3509.2,1.87687759]
[1754114784274,0.001,3509.3,3509.2,2.34727759]
[1754114784568,0.001,3509.7,3509.2,2.55067759]
[1754114784786,0.001,3509.7,3509.6,16.8743759]
[1754114785700,0.001,3509.7,3509.6,17.3447759]
[1754114786001,0.001,3509.7,3509.6,19.09959349]
[1754114788187,0.4864,3509.7,3509.6,1.89721759]
[1754114788484,0.9449,3509.7,3509.4,0.1424]
[1754114788684,0.4595,3509.7,3509.4,0.1424]
[1754114788988,0.4854,3509.6,3509.4,0.1424]
[1754114789363,0.4854,3509.5,3509.4,0.1424]
[1754114789680,0.4854,3509.5,3509.4,0.80018776]
[1754114789881,0.4854,3509.5,3509.4,0.1424]
[1754114790456,0.9439,3509.5,3509.4,0.1424]
[1754114791303,0.4854,3509.5,3509.4,0.1424]
[1754114791652,0.001,3509.7,3509.4,0.1424]
[1754114792510,0.4864,3509.7,3509.4,0.1424]
[1754114792696,0.4864,3509.7,3509.4,0.37712776]
[1754114793580,0.4854,3509.6,3509.4,0.37712776]
[1754114793780,0.001,3509.7,3509.4,0.23472776]
[1754114793975,0.001,3509.7,3509.5,0.1424]
[1754114794182,0.4864,3509.7,3509.5,0.35356054]
[1754114794405,0.4854,3509.6,3509.5,0.35356054]
[1754114796903,0.001,3509.7,3509.5,0.35356054]
[1754114797110,0.001,3509.7,3509.5,17.08553644]
[1754114797311,0.001,3509.7,3509.5,17.55593644]
[1754114797511,0.001,3509.7,3509.6,1.75559364]
[1754114798215,0.001,3509.7,3509.6,2.22599364]
[1754114799007,0.001,3509.7,3509.6,1.75559364]
[1754114799181,0.001,3509.7,3509.6,4.75559364]
[1754114799583,0.001,3509.7,3509.6,1.75559364]
[1754114799584,0.9449,3509.7,3509.6,1.75559364]
[1754114799814,0.9449,3509.7,3509.5,0.1424]
[1754114799975,0.4854,3509.6,3509.5,0.1424]
[1754114800174,0.9439,3509.6,3509.5,0.1424]
[1754114800802,0.001,3509.7,3509.5,17.68656366]
[1754114801311,0.4864,3509.7,3509.5,17.68656366]
[1754114802011,0.001,3509.7,3509.6,0.02849327]
[1754114802211,0.001,3509.7,3509.6,0.4704]
[1754114802413,0.001,3509.7,3509.6,2.30283637]
[1754114802617,0.001,3509.7,3509.6,6.96583637]
[1754114803677,0.001,3509.7,3509.6,6.96283637]
[1754114803883,0.4864,3509.7,3509.6,6.96283637]
[1754114804816,0.001,3509.7,3509.6,6.96283637]
[1754114805196,0.001,3509.7,3509.6,7.43323637]
[1754114805595,0.001,3509.7,3509.6,6.96283637]
[1754114806318,0.4864,3509.7,3509.6,2.30283637]
[1754114808036,0.9449,3509.7,3509.6,2.30283637]
[1754114809732,0.4864,3509.7,3509.6,2.30283637]
[1754114810825,0.4864,3509.7,3509.6,2.44523637]
[1754114811139,0.001,3509.7,3509.6,2.44523637]
[1754114811740,0.4667,3509.7,3509.6,2.44523637]
[1754114812251,0.9226,3509.7,3509.6,2.44523637]
[1754114812454,0.9226,3509.7,3509.6,0.1424]
[1754114812653,0.9226,3509.7,3508.9,0.4732]
[1754114812654,30.0,3509.6,3508.8,0.6288]
[1754114812856,0.1424,3508.9,3508.4,0.1424]
[1754114813055,0.4657,3509.2,3508.1,3.03050545]
[1754114813254,0.4657,3509.2,3509.0,0.1424]
[1754114813628,0.4657,3509.1,3509.0,0.1424]
[1754114814168,0.4657,3509.4,3509.0,0.1424]
[1754114814326,0.4657,3509.3,3509.0,0.1424]
[1754114814651,0.9216,3509.3,3509.0,0.1424]
[1754114814867,0.4657,3509.2,3509.0,0.1424]
[1754114815377,0.1424,3509.5,3509.0,0.6156]
[1754114815671,0.6081,3509.5,3509.0,0.6156]
[1754114815872,0.4657,3509.5,3509.0,0.4732]
[1754114816174,0.4657,3509.4,3508.2,2.52982959]
[1754114816391,0.55,3509.0,3508.1,0.002]
[1754114816543,30.0,3508.7,3508.1,0.002]
[1754114816745,3.0,3508.4,3508.1,0.002]
[1754114816971,3.2100583,3508.4,3508.1,0.002]
[1754114817173,30.0,3508.3,3508.1,0.002]
[1754114817473,30.0,3508.2,3508.1,0.002]
[1754114817645,0.9216,3508.2,3508.1,0.002]
[1754114817845,30.9216,3508.2,3508.1,0.002]
[1754114820194,31.4716,3508.2,3508.1,0.002]
[1754114820351,37.32206462,3508.2,3508.1,0.002]
[1754114820751,34.4716,3508.2,3508.1,0.002]
[1754114821280,37.32206462,3508.2,3508.1,0.002]
[1754114821587,34.4716,3508.2,3508.1,0.002]
[1754114822880,38.6076,3508.2,3508.1,0.002]
[1754114823273,46.1576,3508.2,3508.1,0.002]
[1754114823480,45.6076,3508.2,3508.1,0.002]
[1754114823881,42.6046,3508.2,3508.1,0.002]
[1754114824097,42.1457,3508.2,3508.1,0.002]
[1754114824270,42.6016,3508.2,3508.1,0.002]
[1754114824690,37.9216,3508.2,3508.1,0.002]
[1754114824973,42.6016,3508.2,3508.1,0.002]
[1754114825398,42.5996,3508.2,3508.1,0.002]
[1754114826301,42.742,3508.2,3508.1,0.002]
[1754114826613,42.742,3508.2,3507.0,0.01]
[1754114826614,30.0,3508.0,3507.0,0.01]
[1754114826821,3.40135867,3507.1,3507.0,0.01]
[1754114826985,3.40135867,3507.1,3505.1,0.4812]
[1754114826986,30.0,3506.7,3505.1,0.4812]
[1754114827174,30.1424,3506.2,3505.3,0.1424]
[1754114827375,0.1424,3506.2,3505.3,0.1424]
[1754114827570,0.1424,3506.2,3506.1,0.4772]
[1754114827774,4.8254,3506.2,3506.1,0.9584]
[1754114828088,0.1424,3506.4,3506.1,0.4772]
[1754114828406,30.1424,3506.2,3506.1,0.004]
[1754114828608,34.8244,3506.2,3506.1,0.004]
[1754114828817,42.746,3506.2,3506.1,0.004]
[1754114829180,43.296,3506.2,3506.1,0.004]
[1754114829481,12.04126699,3506.2,3506.1,0.004]
[1754114831013,11.8274,3506.2,3506.1,0.004]
[1754114831511,42.749,3506.2,3506.1,0.004]
[1754114831979,42.95955278,3506.2,3506.1,0.004]
[1754114832403,46.50955278,3506.2,3506.1,0.004]
[1754114832909,45.95955278,3506.2,3506.1,0.004]
[1754114833554,15.50365278,3506.2,3506.1,0.004]
[1754114833849,42.03795278,3506.2,3506.1,0.004]
[1754114834151,12.03795278,3506.2,3506.1,0.004]
[1754114834504,12.95955278,3506.2,3506.1,0.004]
[1754114835230,12.50365278,3506.2,3506.1,0.004]
[1754114835428,12.03795278,3506.2,3506.1,0.004]
[1754114836143,7.35295278,3506.2,3506.1,0.004]
[1754114836305,11.8364,3506.2,3506.1,0.004]
[1754114837975,11.8364,3506.2,3506.1,0.9584]
[1754114838141,11.694,3506.2,3506.1,0.9584]
[1754114839262,4.687,3506.3,3506.1,0.9584]
[1754114839467,4.687,3506.3,3506.2,0.9544]
[1754114839861,0.1424,3506.7,3506.2,0.9544]
[1754114840088,0.1424,3506.7,3506.5,0.1424]
[1754114840089,4.688,3506.7,3506.5,0.1424]
[1754114840259,4.685,3506.9,3506.6,0.9544]
[1754114840459,4.685,3506.9,3506.7,0.9544]
[1754114840764,4.685,3506.9,3506.8,0.9544]
[1754114841754,0.1424,3507.3,3506.8,0.9544]
[1754114841992,4.684,3507.2,3506.9,0.9008]
[1754114842173,4.684,3507.2,3506.7,0.3188053]
[1754114842348,4.684,3507.2,3507.0,0.9008]
[1754114842551,4.684,3507.2,3506.9,0.1424]
[1754114842881,4.684,3507.2,3507.1,0.9008]
[1754114844270,4.8194,3507.5,3507.1,0.9008]
[1754114844452,4.8194,3507.5,3507.2,0.9008]
[1754114844986,0.1424,3507.5,3506.9,0.5799]
[1754114845188,30.0,3508.7,3507.4,15.0912097]
[1754114845391,0.1424,3508.5,3507.8,15.0912097]
[1754114845691,0.1424,3508.5,3507.9,0.92930708]
[1754114845880,0.1424,3508.5,3508.0,1.60205168]
[1754114846076,4.672,3509.0,3508.4,0.1424]
[1754114846584,4.672,3509.0,3508.7,0.1424]
[1754114846886,4.672,3509.0,3508.9,0.1424]
[1754114847071,6.9984,3509.4,3508.9,0.1424]
[1754114847253,4.668,3509.3,3508.9,0.1424]
[1754114850772,0.001,3509.7,3509.0,15.9920097]
[1754114850971,4.658,3509.5,3509.2,0.1424]
[1754114851197,4.658,3509.5,3509.3,0.4375]
[1754114851500,4.658,3509.5,3509.4,0.4375]
[1754114851705,0.001,3509.7,3509.4,0.4375]
[1754114851886,4.657,3509.7,3509.5,0.4375]
[1754114852294,4.657,3509.7,3509.5,0.5799]
[1754114852696,0.001,3509.7,3509.5,0.5799]
[1754114853288,0.001,3509.7,3509.5,0.1424]
[1754114853625,0.001,3509.7,3509.6,0.4375]
[1754114853821,0.001,3509.7,3509.6,0.9008]
[1754114854133,0.001,3509.7,3509.6,15.9920097]
[1754114854286,0.001,3509.7,3509.6,17.75540168]
[1754114857258,4.65,3510.1,3509.6,17.75540168]
[1754114857419,0.001,3510.1,3509.7,0.9008]
[1754114857750,0.1424,3510.7,3509.8,0.9008]
[1754114857914,0.1424,3510.7,3509.6,16.85460168]
[1754114857915,0.1424,3510.7,3510.2,15.0912097]
[1754114858115,0.4954,3511.3,3510.3,1.53760856]
[1754114858315,0.4954,3511.3,3510.6,0.1424]
[1754114858316,0.6378,3511.3,3510.6,0.1424]
[1754114858508,0.6378,3511.3,3510.8,0.1424]
[1754114858836,0.1424,3511.3,3510.8,0.1424]
[1754114859037,4.639,3511.4,3510.8,0.4375]
[1754114859338,4.639,3511.4,3511.0,0.1424]
[1754114859635,5.1344,3511.4,3511.0,0.1424]
[1754114860344,0.9591,3511.3,3511.0,0.1424]
[1754114860520,0.1424,3511.1,3510.2,0.1424]
[1754114860703,0.1424,3510.7,3510.2,0.1424]
[1754114861044,0.9591,3510.6,3510.2,0.1424]
[1754114861238,0.9591,3510.5,3510.2,0.1424]
[1754114861443,0.4954,3510.4,3510.2,0.1424]
[1754114861801,0.1424,3510.7,3510.2,0.1424]
[1754114862306,0.6378,3510.7,3510.2,0.1424]
[1754114863239,0.1424,3510.7,3510.2,0.1424]
[1754114863436,0.4954,3510.6,3510.2,0.1424]
[1754114863645,0.1424,3510.7,3510.2,0.1424]
[1754114864454,0.4954,3510.6,3510.2,0.1424]
[1754114864750,0.9591,3510.5,3510.2,0.1424]
[1754114864950,0.4637,3510.5,3510.2,0.1424]
[1754114865154,0.4954,3510.4,3510.2,0.1424]
[1754114865518,0.4637,3510.5,3510.2,0.1424]
[1754114865714,0.4954,3510.3,3510.2,0.1424]
[1754114867149,0.4637,3510.5,3510.2,0.1424]
[1754114867391,0.4954,3510.6,3510.2,0.1424]
[1754114867963,0.1424,3510.7,3510.2,0.1424]
[1754114868122,0.6378,3510.7,3510.2,0.1424]
[1754114869152,0.4954,3510.6,3510.2,0.1424]
[1754114871368,0.4954,3510.5,3510.2,0.1424]
[1754114871657,0.98757072,3510.5,3508.8,15.0912097]
[1754114871831,0.9342,3510.4,3509.1,0.856376]
[1754114872038,4.63547072,3510.3,3509.1,0.856376]
[1754114872347,0.9342,3510.2,3509.1,0.856376]
[1754114872550,4.607,3510.3,3509.1,0.856376]
[1754114872751,0.9342,3510.1,3509.2,0.2872427]
[1754114872955,0.9342,3510.0,3509.2,0.2872427]
[1754114873148,0.02847072,3510.2,3509.2,0.2872427]
[1754114873357,0.9342,3509.9,3509.2,0.2872427]
[1754114873542,0.4984,3509.8,3509.2,0.2872427]
[1754114873868,0.4984,3509.8,3509.3,0.41436187]
[1754114874161,0.4358,3509.7,3509.3,0.41436187]
[1754114874665,0.4984,3509.6,3509.3,0.41436187]
[1754114874892,0.4358,3509.7,3509.3,0.41436187]
[1754114874893,0.4984,3509.5,3509.3,0.41436187]
[1754114875362,0.4984,3509.8,3509.3,0.41436187]
[1754114875568,0.4358,3510.0,3509.4,0.15579806]
[1754114875865,0.4984,3509.7,3509.4,0.15579806]
[1754114876066,0.4984,3509.7,3509.5,14.75037756]
[1754114876643,0.4984,3509.6,3509.5,14.75037756]
[1754114876849,0.9342,3509.6,3509.5,14.75037756]
[1754114877074,0.9342,3509.6,3509.5,1.51934183]
[1754114877378,0.9342,3509.6,3509.4,0.15579806]
[1754114877572,0.4984,3509.5,3509.4,0.15579806]
[1754114878178,0.4984,3509.5,3509.2,0.7856427]
[1754114879283,0.4984,3509.4,3509.2,0.7856427]
[1754114880349,0.02847072,3510.2,3509.2,0.4984]
[1754114880546,30.0,3510.0,3508.9,14.75037756]
[1754114880863,0.9342,3509.9,3508.9,14.75037756]
[1754114881062,0.9342,3509.8,3508.9,14.75037756]
[1754114881262,0.4984,3509.7,3509.0,1.56661776]
[1754114881463,0.1424,3509.6,3509.1,0.1424]
[1754114881987,0.1424,3509.6,3509.4,14.75037756]
[1754114882345,0.4984,3509.9,3509.4,14.75037756]
[1754114882550,0.4984,3509.8,3509.4,16.45939532]
[1754114883187,0.1424,3509.9,3509.4,16.45939532]
[1754114883357,0.4984,3509.7,3509.4,16.45939532]
[1754114884393,0.4984,3509.6,3509.4,16.45939532]
[1754114884681,4.582,3510.0,3508.9,14.75037756]
[1754114884682,0.4984,3509.5,3508.9,14.75037756]
[1754114884882,0.9342,3509.5,3509.2,0.1424]
[1754114885086,0.1424,3509.7,3509.2,0.1424]
[1754114885387,0.4984,3509.4,3509.2,0.1424]
[1754114887057,0.1424,3509.7,3509.2,0.1424]
[1754114887359,0.4984,3509.6,3509.0,0.02849814]
[1754114887584,0.4984,3509.6,3509.4,14.75037756]
[1754114887975,0.1424,3509.7,3509.4,14.75037756]
[1754114888199,0.4984,3509.5,3509.4,14.75037756]
[1754114888357,0.1424,3509.7,3509.4,14.75037756]
[1754114888565,0.6408,3509.8,3509.4,14.75037756]
[1754114888858,0.1424,3509.8,3509.4,14.75037756]
[1754114889064,0.4984,3509.7,3509.4,14.75037756]
[1754114889259,0.4984,3509.6,3509.4,14.75037756]
[1754114889488,0.4984,3509.5,3509.4,14.75037756]
[1754114891603,0.4984,3509.5,3509.3,0.1424]
[1754114891896,0.4984,3509.5,3509.2,0.1424]
[1754114892404,0.4984,3509.4,3509.2,0.1424]
[1754114896303,0.4984,3509.3,3509.2,0.1424]
[1754114896877,0.9342,3509.6,3509.2,0.1424]
[1754114897075,0.4358,3509.6,3509.2,0.1424]
[1754114897320,0.4984,3509.5,3509.2,0.1424]
[1754114898719,0.1424,3509.7,3509.2,0.1424]
[1754114898904,0.4984,3509.4,3509.2,0.1424]
[1754114899076,0.4984,3509.3,3509.2,0.1424]
[1754114900879,0.4984,3509.3,3509.2,10.09506855]
[1754114902605,0.4869,3509.5,3509.2,10.09506855]
[1754114904747,0.1424,3509.7,3509.2,10.09506855]
[1754114904997,0.4869,3509.8,3509.6,9.95266855]
[1754114905150,0.1424,3510.0,3509.6,9.95266855]
[1754114905439,4.536,3509.9,3509.6,9.95266855]
[1754114905605,0.001,3510.1,3509.8,9.95266855]
[1754114905804,4.535,3510.3,3509.8,10.09506855]
[1754114906008,4.535,3510.3,3510.2,9.95266855]
[1754114906210,0.001,3510.5,3510.2,9.95266855]
[1754114906407,0.001,3510.5,3510.3,0.02848759]
[1754114906611,0.001,3510.5,3510.3,0.47988759]
[1754114906804,0.001,3510.5,3510.4,16.03036534]
[1754114907051,4.536,3511.0,3510.5,3.0]
[1754114907211,4.536,3511.0,3510.9,14.74254424]
[1754114907411,4.536,3511.0,3510.9,16.32745718]
[1754114907611,6.85,3512.4,3510.9,16.77885718]
[1754114907811,0.4869,3511.7,3511.3,0.1424]
[1754114908033,0.1424,3511.8,3511.3,0.1424]
[1754114908034,0.4869,3511.6,3511.3,0.1424]
[1754114908304,5.0219,3511.6,3511.3,0.1424]
[1754114909322,5.0219,3511.6,3510.9,17.26315718]
[1754114909323,5.4821,3511.5,3510.9,0.855926]
[1754114909522,5.4821,3511.5,3510.7,0.1424]
[1754114909523,0.1424,3511.2,3510.7,0.1424]
[1754114909760,0.6293,3511.4,3510.9,0.1424]
[1754114910058,0.9471,3511.3,3510.7,0.90078603]
[1754114910259,0.4869,3511.2,3510.9,0.1424]
[1754114910441,0.9471,3511.2,3510.9,0.1424]
[1754114910761,0.9471,3511.1,3510.5,14.74254424]
[1754114910940,0.6026,3511.1,3510.6,0.1424]
[1754114911112,0.4869,3511.0,3510.6,0.1424]
[1754114911313,0.9471,3511.0,3510.6,0.1424]
[1754114911512,0.4869,3510.9,3510.6,0.1424]
[1754114912539,0.4869,3510.8,3510.6,0.1424]
[1754114912878,0.4869,3511.5,3510.7,0.9357]
[1754114913085,4.528,3511.7,3511.1,0.1424]
[1754114913296,0.4869,3511.8,3511.0,14.74254424]
[1754114913572,0.4612,3512.0,3511.6,14.74254424]
[1754114913573,4.527,3511.7,3511.6,14.74254424]
[1754114913865,0.1434,3512.0,3511.6,14.74254424]
[1754114914081,4.528,3512.0,3511.6,15.19394424]
[1754114916051,4.528,3512.0,3511.8,0.1424]
[1754114916269,4.528,3512.0,3511.8,1.67603442]
[1754114917270,5.0149,3512.0,3511.8,1.67603442]
[1754114919968,4.528,3512.0,3511.8,1.67603442]
[1754114920695,5.0149,3512.0,3511.8,1.67603442]
[1754114922898,4.528,3512.0,3511.8,0.1424]
[1754114923070,4.528,3512.0,3511.1,0.1424]
[1754114923071,1.11797072,3511.9,3511.1,0.1424]
[1754114923262,0.1424,3511.4,3510.9,0.1424]
[1754114923458,5.4571,3511.3,3510.9,0.1424]
[1754114923687,4.51,3511.3,3510.9,0.1424]
[1754114923889,0.9471,3511.2,3510.9,0.1424]
[1754114924301,4.51,3511.3,3510.7,3.0]
[1754114924503,0.9471,3511.1,3510.7,3.0]
[1754114924698,0.9471,3511.1,3510.7,4.85986392]
[1754114924867,0.4869,3511.1,3510.7,4.85986392]
[1754114925264,0.4869,3511.0,3510.7,4.85986392]
[1754114925595,0.4869,3510.9,3510.7,4.85986392]
[1754114926410,0.4869,3510.9,3510.6,14.88494424]
[1754114926411,0.17087072,3511.2,3510.6,14.88494424]
[1754114926702,0.4869,3510.8,3510.6,14.88494424]
[1754114926877,0.4869,3511.1,3510.6,14.88494424]
[1754114927074,0.6026,3511.2,3510.6,14.88494424]
[1754114927279,0.4869,3511.0,3510.6,14.88494424]
[1754114927675,0.6293,3511.2,3510.6,16.42212866]
[1754114927886,4.507,3511.1,3510.6,16.87352866]
[1754114928096,0.6293,3511.2,3510.6,16.90642866]
[1754114928296,4.507,3511.1,3510.7,0.4514]
[1754114928999,4.9939,3511.1,3510.6,16.42212866]
[1754114929305,0.4869,3511.0,3510.6,16.42212866]
[1754114929887,4.507,3511.1,3510.7,2.72017287]
[1754114930092,0.4869,3511.8,3511.0,0.1424]
[1754114930288,0.1424,3511.6,3511.2,14.74254424]
[1754114930492,0.1424,3511.6,3511.3,0.4514]
[1754114930806,0.1424,3511.6,3511.4,2.01922442]
[1754114930973,0.1424,3511.6,3511.4,2.05212442]
[1754114931169,4.507,3511.8,3511.5,0.4514]
[1754114931370,4.507,3511.8,3511.5,0.5938]
[1754114932273,0.001,3512.0,3511.5,0.5938]
[1754114932471,0.001,3512.0,3511.7,0.1424]
[1754114932681,4.507,3511.9,3511.7,0.1424]
[1754114933481,4.9812,3511.9,3511.7,0.1424]
[1754114933897,4.9812,3511.9,3511.7,0.5938]
[1754114934488,0.4742,3511.8,3511.7,0.5938]
[1754114935103,0.4752,3511.8,3511.7,0.5938]
[1754114935817,0.9361,3511.8,3511.7,0.5938]
[1754114936330,0.9361,3511.8,3511.7,0.4514]
[1754114937208,4.9822,3511.8,3511.7,0.4514]
[1754114939012,0.4752,3511.8,3511.7,0.4514]
[1754114939215,4.9822,3511.8,3511.7,0.4514]
[1754114939733,0.4752,3511.8,3511.7,0.4514]
[1754114940046,4.9812,3511.8,3511.7,0.4514]
[1754114940604,0.4752,3511.8,3511.7,0.4514]
[1754114940804,4.507,3511.8,3511.7,0.4514]
[1754114941429,4.9812,3511.8,3511.7,0.4514]